bitfinex/quotes_SOLUSD_20251019
["timestamp","ask_amount","ask_price","bid_price","bid_amount"]
[1760855552886,102.1,186.3,186.29,0.65]
[1760855553082,105.42887142,186.3,186.29,0.65]
[1760855553288,109.02925821,186.3,186.29,0.65]
[1760855553805,102.1,186.3,186.28,2.25325814]
[1760855554008,105.42887142,186.3,186.28,2.90325814]
[1760855554508,105.42887142,186.3,186.28,2.25325814]
[1760855555007,102.1,186.3,186.28,2.90325814]
[1760855555188,105.42887142,186.3,186.29,0.65]
[1760855555800,105.42887142,186.3,186.28,2.25325814]
[1760855556124,105.42887142,186.3,186.28,2.90325814]
[1760855556787,102.1,186.3,186.28,2.25325814]
[1760855557096,102.1,186.3,186.29,0.65]
[1760855559410,4.47864354,186.41,186.29,32.22684608]
[1760855559707,3.32887142,186.36,186.3,3.97887142]
[1760855559907,4.04887142,186.35,186.3,0.65]
[1760855560113,0.72,186.34,186.3,0.65]
[1760855560311,0.72,186.34,186.31,5.36797466]
[1760855560510,3.32887142,186.36,186.31,6.01797466]
[1760855560714,0.72,186.35,186.31,6.01797466]
[1760855561018,10.87647521,186.4,186.31,6.01797466]
[1760855561019,4.04887142,186.34,186.31,6.01797466]
[1760855561207,3.32887142,186.32,186.31,5.36797466]
[1760855561405,22.88,186.28,186.25,0.1]
[1760855561725,14.20534663,186.26,186.25,0.1]
[1760855561932,10.87647521,186.26,186.25,0.1]
[1760855562097,14.92534663,186.26,186.25,0.1]
[1760855563497,22.88,186.3,186.25,0.1]
[1760855563703,0.68,186.28,186.25,0.1]
[1760855563931,3.32887142,186.26,186.25,0.1]
[1760855565010,3.32887142,186.26,186.25,0.8]
[1760855566808,3.32887142,186.26,186.25,0.1]
[1760855568317,3.32887142,186.26,186.25,11.69299764]
[1760855568524,3.32887142,186.27,186.25,12.39299764]
[1760855569416,3.32887142,186.28,186.25,0.8]
[1760855569823,3.32887142,186.28,186.26,12.39299764]
[1760855571904,3.32887142,186.28,186.26,13.09299764]
[1760855572317,3.32887142,186.28,186.26,0.7]
[1760855572520,3.32887142,186.28,186.27,3.59827966]
[1760855578139,0.68,186.3,186.27,3.59827966]
[1760855578329,3.32887142,186.28,186.27,3.59827966]
[1760855583734,104.70887142,186.31,186.27,4.29827966]
[1760855584034,101.38,186.31,186.28,0.7]
[1760855584541,3.32887142,186.34,186.28,8.32715108]
[1760855584757,3.32887142,186.34,186.29,0.7]
[1760855584921,4.00887142,186.34,186.28,3.32887142]
[1760855585125,3.32887142,186.33,186.3,8.32715108]
[1760855585328,3.32887142,186.34,186.31,0.7]
[1760855585534,23.56,186.36,186.31,0.7]
[1760855585736,3.32887142,186.34,186.32,7.62715108]
[1760855586313,4.00887142,186.35,186.32,7.62715108]
[1760855586733,4.00887142,186.35,186.31,0.7]
[1760855587022,3.32887142,186.36,186.32,0.7]
[1760855587219,101.38,186.37,186.32,9.39574598]
[1760855587420,3.32887142,186.38,186.33,0.7]
[1760855587639,3.32887142,186.38,186.32,8.69574598]
[1760855587640,4.01887142,186.38,186.34,0.7]
[1760855588148,3.32887142,186.38,186.35,0.7]
[1760855588332,4.01887142,186.38,186.35,0.7]
[1760855588637,101.38,186.44,186.34,10.30690721]
[1760855588843,4.01887142,186.4,186.36,0.7]
[1760855589025,3.32887142,186.39,186.36,0.7]
[1760855589230,0.69,186.4,186.36,0.7]
[1760855589428,4.01887142,186.4,186.36,0.7]
[1760855589631,3.32887142,186.39,186.36,0.7]
[1760855591141,4.01887142,186.4,186.36,0.7]
[1760855592919,3.32887142,186.41,186.37,0.7]
[1760855593126,4.01887142,186.42,186.38,0.7]
[1760855593325,0.69,186.41,186.37,0.53656704]
[1760855593626,0.69,186.41,186.37,1.23656704]
[1760855594028,3.98887142,186.4,186.36,5.3658479]
[1760855594242,3.98887142,186.4,186.36,0.66]
[1760855594243,3.32887142,186.4,186.36,0.66]
[1760855594428,3.32887142,186.38,186.35,28.24620753]
[1760855594621,3.98887142,186.38,186.36,16.13640642]
[1760855595922,3.98887142,186.37,186.3,6.02764922]
[1760855596123,3.32887142,186.35,186.32,16.13640642]
[1760855596355,3.32887142,186.36,186.32,16.13640642]
[1760855596649,0.66,186.35,186.32,16.13640642]
[1760855596965,3.32887142,186.36,186.32,16.13640642]
[1760855597257,0.66,186.35,186.32,16.13640642]
[1760855598528,3.32887142,186.36,186.32,16.13640642]
[1760855598729,3.98887142,186.38,186.33,0.66]
[1760855599030,0.66,186.38,186.33,3.98887142]
[1760855599234,0.66,186.38,186.34,0.66]
[1760855599437,0.66,186.38,186.34,16.79727441]
[1760855599833,3.32887142,186.39,186.34,5.36649007]
[1760855600041,3.98887142,186.39,186.35,0.66]
[1760855600240,3.98887142,186.39,186.35,16.79727441]
[1760855602960,0.66,186.39,186.35,16.79727441]
[1760855603650,0.66,186.38,186.35,16.13727441]
[1760855603827,0.66,186.38,186.34,5.36649007]
[1760855604033,0.66,186.38,186.34,22.16376448]
[1760855604337,3.32887142,186.38,186.35,0.66]
[1760855604758,3.32887142,186.38,186.34,16.13727441]
[1760855604949,0.66,186.37,186.34,16.13727441]
[1760855606246,3.98887142,186.36,186.34,16.13727441]
[1760855606457,3.98887142,186.35,186.31,0.66]
[1760855606658,0.66,186.35,186.32,21.5043642]
[1760855607042,0.66,186.35,186.32,16.13727441]
[1760855607242,3.32887142,186.36,186.32,16.79727441]
[1760855607452,3.98887142,186.36,186.32,16.79727441]
[1760855608172,0.66,186.35,186.32,16.13727441]
[1760855608541,0.66,186.35,186.31,6.02734827]
[1760855608756,0.66,186.35,186.32,16.13727441]
[1760855609669,0.66,186.35,186.31,6.02734827]
[1760855609853,0.66,186.35,186.31,22.16462268]
[1760855611260,3.98887142,186.34,186.29,5.36786506]
[1760855611439,0.66,186.33,186.3,16.14161577]
[1760855611640,0.66,186.32,186.3,16.14161577]
[1760855611866,3.32887142,186.33,186.28,6.02820368]
[1760855612073,3.98887142,186.35,186.3,0.66]
[1760855612257,3.98887142,186.35,186.31,0.66]
[1760855613141,3.98887142,186.34,186.3,16.14074731]
[1760855613346,3.32887142,186.32,186.27,0.66]
[1760855613565,0.66,186.31,186.28,16.14074731]
[1760855613766,3.32887142,186.32,186.28,16.80074731]
[1760855613964,3.98887142,186.32,186.28,16.80074731]
[1760855614271,3.32887142,186.32,186.28,16.80074731]
[1760855614453,3.32887142,186.32,186.28,16.14074731]
[1760855614646,0.66,186.31,186.27,6.02847256]
[1760855614960,0.66,186.31,186.27,21.50921987]
[1760855615170,0.66,186.31,186.27,22.16921987]
[1760855616051,0.66,186.31,186.27,16.80074731]
[1760855616254,3.98887142,186.31,186.27,16.80074731]
[1760855618358,0.66,186.31,186.27,16.80074731]
[1760855618867,3.98887142,186.33,186.28,0.66]
[1760855619171,0.66,186.32,186.28,16.80335297]
[1760855619973,3.98887142,186.32,186.28,16.80335297]
[1760855620155,3.98887142,186.34,186.29,0.66]
[1760855620359,3.32887142,186.34,186.28,25.37727351]
[1760855620562,0.66,186.33,186.29,0.66]
[1760855621469,3.98887142,186.33,186.29,0.66]
[1760855621674,3.32887142,186.34,186.29,21.51037164]
[1760855621853,3.32887142,186.34,186.3,0.66]
[1760855622057,3.32887142,186.34,186.31,0.66]
[1760855622958,3.98887142,186.34,186.3,16.14161577]
[1760855623269,3.98887142,186.34,186.3,16.80161577]
[1760855624055,0.66,186.34,186.3,16.80161577]
[1760855624273,0.66,186.34,186.31,0.65]
[1760855624274,3.98887142,186.34,186.31,0.65]
[1760855624780,0.69,186.33,186.3,16.14161577]
[1760855625363,0.69,186.33,186.3,16.79161577]
[1760855625875,124.26,186.36,186.3,16.79161577]
[1760855626071,124.26,186.36,186.31,0.65]
[1760855626382,0.69,186.35,186.31,16.78987895]
[1760855626877,0.69,186.35,186.31,0.65]
[1760855627068,0.69,186.35,186.32,16.13987895]
[1760855627958,0.69,186.35,186.32,16.78987895]
[1760855628976,104.70887142,186.36,186.32,21.50694906]
[1760855629173,101.38,186.36,186.33,0.65]
[1760855629379,3.32887142,186.38,186.34,0.65]
[1760855629566,3.32887142,186.38,186.35,0.65]
[1760855630171,4.01887142,186.39,186.35,4.2490186]
[1760855630580,0.69,186.38,186.35,0.65]
[1760855630783,0.69,186.38,186.36,5.90308046]
[1760855631362,4.01887142,186.38,186.36,5.90308046]
[1760855631566,4.01887142,186.37,186.31,0.53673984]
[1760855631766,3.32887142,186.35,186.34,3.59967304]
[1760855632182,4.01887142,186.36,186.34,3.59967304]
[1760855632870,3.32887142,186.36,186.34,3.59967304]
[1760855633186,3.32887142,186.37,186.34,3.59967304]
[1760855633385,4.01887142,186.37,186.34,3.59967304]
[1760855633992,0.69,186.36,186.34,3.59967304]
[1760855634684,0.69,186.35,186.34,3.59967304]
[1760855634867,3.32887142,186.36,186.34,3.59967304]
[1760855635067,4.01887142,186.36,186.34,3.59967304]
[1760855635591,3.32887142,186.35,186.31,6.01735667]
[1760855635789,4.01887142,186.35,186.31,6.01735667]
[1760855635980,4.01887142,186.35,186.33,5.3671093]
[1760855638064,0.69,186.34,186.3,6.01761944]
[1760855638265,0.69,186.34,186.32,6.01735667]
[1760855639880,3.32887142,186.35,186.32,6.01735667]
[1760855640175,4.01887142,186.35,186.32,6.01735667]
[1760855641195,101.38,186.38,186.33,0.65]
[1760855641393,104.70887142,186.38,186.33,3.32887142]
[1760855641570,105.39887142,186.38,186.33,0.65]
[1760855641771,4.01887142,186.37,186.33,0.65]
[1760855641990,4.01887142,186.37,186.33,16.78901067]
[1760855642401,0.69,186.41,186.35,3.32887142]
[1760855642598,3.60173981,186.4,186.36,0.65]
[1760855642780,0.69,186.39,186.35,8.69506847]
[1760855642970,0.69,186.39,186.35,6.01619705]
[1760855643171,0.69,186.39,186.36,16.13640642]
[1760855643780,3.32887142,186.4,186.36,16.78640642]
[1760855643982,3.32887142,186.41,186.37,0.65]
[1760855644281,3.32887142,186.41,186.38,0.65]
[1760855644807,4.01887142,186.41,186.37,16.13553852]
[1760855644995,4.01887142,186.41,186.37,16.78553852]
[1760855646182,4.01887142,186.41,186.37,6.01561566]
[1760855646374,6.9296608,186.42,186.38,16.78467071]
[1760855646688,6.9296608,186.42,186.38,16.13467071]
[1760855646868,6.9296608,186.42,186.39,0.65]
[1760855647188,101.38,186.43,186.39,0.65]
[1760855647387,101.38,186.43,186.4,0.65]
[1760855647781,101.38,186.43,186.4,16.783803]
[1760855647978,102.09,186.43,186.4,16.133803]
[1760855648171,102.09,186.43,186.39,0.72]
[1760855648370,102.09,186.43,186.39,16.853803]
[1760855648874,102.09,186.43,186.39,0.72]
[1760855649193,102.09,186.43,186.4,16.133803]
[1760855652699,0.71,186.43,186.4,16.133803]
[1760855659180,3.32887142,186.43,186.4,16.133803]
[1760855659382,3.99887142,186.43,186.4,16.133803]
[1760855663007,3.32887142,186.41,186.4,16.133803]
[1760855663204,3.99887142,186.41,186.4,16.133803]
[1760855663509,3.99887142,186.41,186.35,24.08662463]
[1760855663692,0.67,186.4,186.35,27.41549605]
[1760855663896,0.67,186.39,186.37,16.133803]
[1760855664495,3.32887142,186.41,186.37,16.133803]
[1760855664690,0.67,186.4,186.37,16.133803]
[1760855670708,0.67,186.4,186.37,22.16943091]
[1760855670907,0.67,186.41,186.37,22.16943091]
[1760855671091,0.67,186.41,186.37,6.03562791]
[1760855671412,0.67,186.41,186.38,16.13553852]
[1760855674609,3.99887142,186.41,186.38,16.13553852]
[1760855676017,0.67,186.4,186.38,16.13553852]
[1760855677110,3.99887142,186.41,186.38,16.13553852]
[1760855677307,0.67,186.4,186.38,16.13553852]
[1760855678898,3.99887142,186.39,186.38,16.13553852]
[1760855679098,3.99887142,186.39,186.33,6.57325629]
[1760855679317,3.99887142,186.38,186.36,16.13727441]
[1760855680130,3.99887142,186.37,186.36,16.13727441]
[1760855680310,3.99887142,186.37,186.3,0.67]
[1760855680508,3.32887142,186.34,186.3,23.55]
[1760855680715,0.67,186.33,186.3,23.55]
[1760855681025,3.99887142,186.32,186.31,16.13727441]
[1760855681402,0.67,186.32,186.25,5.46885075]
[1760855681721,3.32887142,186.31,186.28,3.99887142]
[1760855681926,3.99887142,186.31,186.28,3.99887142]
[1760855682626,0.67,186.3,186.28,3.99887142]
[1760855683410,3.99887142,186.3,186.28,3.99887142]
[1760855684912,4.01887142,186.29,186.25,0.1]
[1760855685224,4.01887142,186.29,186.27,5.46885075]
[1760855685423,0.69,186.28,186.27,5.46885075]
[1760855685618,4.01887142,186.28,186.25,0.1]
[1760855685824,3.32887142,186.27,186.25,0.1]
[1760855686011,4.01887142,186.27,186.26,8.69829199]
[1760855686213,4.01887142,186.27,186.25,0.1]
[1760855686413,3.32887142,186.26,186.25,0.1]
[1760855686624,0.69,186.26,186.25,0.1]
[1760855686812,23.57,186.28,186.25,0.1]
[1760855687017,3.32887142,186.26,186.25,0.1]
[1760855687629,4.01887142,186.26,186.25,0.1]
[1760855692350,0.69,186.26,186.25,0.1]
[1760855692522,4.01887142,186.26,186.25,0.1]
[1760855698657,14.89534663,186.26,186.25,0.1]
[1760855700535,14.89534663,186.26,186.18,3.52272727]
[1760855700536,22.88,186.23,186.18,3.52272727]
[1760855700746,3.32887142,186.19,186.18,3.52272727]
[1760855701255,4.01887142,186.19,186.18,3.52272727]
[1760855701439,26.89887142,186.19,186.18,3.52272727]
[1760855702027,3.32887142,186.19,186.18,4.20272727]
[1760855702256,3.32887142,186.19,186.18,3.52272727]
[1760855702450,4.01887142,186.19,186.18,3.52272727]
[1760855702754,22.88,186.22,186.18,4.20272727]
[1760855703056,22.88,186.22,186.18,3.52272727]
[1760855703057,3.32887142,186.2,186.18,3.52272727]
[1760855703352,4.01887142,186.19,186.18,3.52272727]
[1760855707051,14.89534663,186.19,186.18,3.52272727]
[1760855708533,22.88,186.16,186.15,0.1]
[1760855708738,26.20887142,186.16,186.15,0.1]
[1760855708938,26.91887142,186.16,186.15,0.1]
[1760855709147,37.79534663,186.16,186.15,0.1]
[1760855709461,10.87647521,186.15,186.14,3.65358127]
[1760855709765,22.88,186.12,186.11,0.1]
[1760855709968,26.20887142,186.12,186.11,0.1]
[1760855710138,22.88,186.12,186.11,0.1]
[1760855710343,26.20887142,186.12,186.11,0.1]
[1760855711341,30.24774284,186.12,186.11,0.1]
[1760855712243,26.91887142,186.12,186.11,0.1]
[1760855716038,22.88,186.12,186.11,0.1]
[1760855716246,26.20887142,186.12,186.11,0.1]
[1760855717559,22.88,186.12,186.11,0.82]
[1760855717758,3.32887142,186.12,186.11,0.82]
[1760855719062,102.1,186.14,186.11,0.82]
[1760855719240,3.32887142,186.12,186.11,0.82]
[1760855720249,3.32887142,186.12,186.11,4.80443526]
[1760855720652,102.1,186.14,186.11,4.80443526]
[1760855720872,3.32887142,186.12,186.11,4.80443526]
[1760855726353,3.32887142,186.12,186.11,4.08443526]
[1760855730154,102.79,186.14,186.11,4.08443526]
[1760855730367,3.32887142,186.12,186.11,4.08443526]
[1760855731061,3.32887142,186.12,186.11,4.80443526]
[1760855731651,3.32887142,186.12,186.11,4.08443526]
[1760855732353,102.79,186.14,186.11,4.08443526]
[1760855732559,3.32887142,186.12,186.11,4.08443526]
[1760855738679,26.89887142,186.12,186.11,0.1]
[1760855738883,30.22774284,186.12,186.11,0.1]
[1760855742190,26.89887142,186.12,186.11,0.1]
[1760855744258,30.22774284,186.12,186.11,0.1]
[1760855748686,33.82148489,186.12,186.11,0.1]
[1760855754103,27.16374205,186.12,186.11,0.1]
[1760855754276,33.82148489,186.12,186.11,0.1]
[1760855755383,27.16374205,186.12,186.11,0.1]
[1760855755589,33.82148489,186.12,186.11,0.1]
[1760855758909,44.6979601,186.12,186.11,0.1]
[1760855760388,44.6979601,186.12,186.09,3.88443526]
[1760855760389,10.87647521,186.11,186.09,3.88443526]
[1760855760588,18.49908868,186.1,186.09,3.88443526]
[1760855762394,14.90534663,186.1,186.09,3.88443526]
[1760855762596,18.49908868,186.1,186.09,3.88443526]
[1760855762793,14.90534663,186.1,186.09,3.88443526]
[1760855763013,18.49908868,186.1,186.09,3.88443526]
[1760855763204,15.70534663,186.1,186.09,3.88443526]
[1760855763411,19.29908868,186.1,186.09,3.88443526]
[1760855763605,15.70534663,186.1,186.09,3.88443526]
[1760855763804,19.29908868,186.1,186.09,3.88443526]
[1760855764112,15.70534663,186.1,186.09,3.88443526]
[1760855764315,19.29908868,186.1,186.09,3.88443526]
[1760855764709,4.12887142,186.1,186.09,4.56443526]
[1760855764931,27.00887142,186.1,186.09,3.88443526]
[1760855765100,129.00887142,186.1,186.09,3.88443526]
[1760855765506,128.30887142,186.1,186.09,3.88443526]
[1760855766807,128.30887142,186.1,186.09,4.56443526]
[1760855767400,128.30887142,186.1,186.09,3.88443526]
[1760855768499,124.98,186.1,186.09,3.88443526]
[1760855768699,128.30887142,186.1,186.09,3.88443526]
[1760855769919,128.30887142,186.1,186.09,4.58443526]
[1760855770114,124.98,186.1,186.09,4.58443526]
[1760855771024,128.30887142,186.1,186.09,4.58443526]
[1760855776021,128.30887142,186.1,186.09,4.56443526]
[1760855777401,128.99887142,186.1,186.09,3.88443526]
[1760855778924,132.59081086,186.1,186.09,3.88443526]
[1760855780126,143.46728607,186.1,186.09,3.88443526]
[1760855782919,41.36728607,186.1,186.09,3.88443526]
[1760855784333,33.75647521,186.07,186.06,13.42348914]
[1760855784628,35.75647521,186.02,186.01,2.03614325]
[1760855784813,40.67728607,186.02,185.93,0.68]
[1760855785010,33.75647521,185.97,185.93,0.68]
[1760855785220,22.88,185.93,185.92,4.30785124]
[1760855785423,3.32887142,185.93,185.92,4.98785124]
[1760855785727,3.32887142,185.93,185.9,0.08785124]
[1760855785914,3.32887142,185.91,185.9,0.08785124]
[1760855786316,26.20887142,185.91,185.83,4.56955923]
[1760855786515,3.32887142,185.87,185.84,4.98785124]
[1760855786719,3.32887142,185.86,185.84,4.98785124]
[1760855787126,3.32887142,185.87,185.84,4.98785124]
[1760855787333,22.88,185.9,185.83,4.56955923]
[1760855787634,3.32887142,185.85,185.84,8.7107044]
[1760855787817,3.32887142,185.85,185.84,9.3907044]
[1760855788018,22.88,185.82,185.79,4.70041322]
[1760855788219,26.20887142,185.8,185.79,4.70041322]
[1760855789237,41.10421805,185.8,185.75,4.83126722]
[1760855789409,6.65774284,185.76,185.75,5.51126722]
[1760855789614,6.65774284,185.76,185.75,4.83126722]
[1760855789910,10.87647521,185.81,185.75,5.51126722]
[1760855790113,3.32887142,185.77,185.76,0.68]
[1760855790612,3.32887142,185.78,185.76,0.68]
[1760855790809,14.20534663,185.85,185.76,0.68]
[1760855791037,10.87647521,185.88,185.76,6.0631781]
[1760855791215,10.87647521,185.88,185.77,0.68]
[1760855791216,10.87647521,185.87,185.77,0.68]
[1760855791534,3.32887142,185.81,185.77,0.68]
[1760855791916,3.32887142,185.82,185.77,0.68]
[1760855792116,22.88,185.84,185.77,0.68]
[1760855792314,3.32887142,185.8,185.77,0.68]
[1760855792643,3.32887142,185.78,185.75,4.83126722]
[1760855792823,10.87647521,185.81,185.76,0.68]
[1760855793010,3.32887142,185.77,185.76,0.68]
[1760855793210,3.32887142,185.77,185.75,4.83126722]
[1760855793627,22.88,185.78,185.75,4.83126722]
[1760855793828,3.32887142,185.76,185.75,5.51126722]
[1760855794634,3.32887142,185.77,185.75,5.51126722]
[1760855794825,3.32887142,185.77,185.76,0.68]
[1760855795721,26.20887142,185.78,185.76,0.68]
[1760855795913,3.32887142,185.8,185.76,0.68]
[1760855796114,22.88,185.82,185.76,0.68]
[1760855796317,3.32887142,185.81,185.76,0.68]
[1760855796532,22.88,185.84,185.76,0.68]
[1760855796729,3.32887142,185.81,185.76,0.68]
[1760855797529,3.32887142,185.8,185.77,13.54369264]
[1760855797739,3.32887142,185.8,185.78,0.68]
[1760855797918,3.32887142,185.79,185.75,5.51126722]
[1760855798120,3.32887142,185.77,185.76,13.54369264]
[1760855798344,3.32887142,185.77,185.75,5.51126722]
[1760855798717,3.32887142,185.77,185.75,4.83126722]
[1760855798947,3.32887142,185.78,185.76,0.68]
[1760855799151,3.32887142,185.78,185.77,0.68]
[1760855799458,22.88,185.8,185.77,0.68]
[1760855799459,3.32887142,185.79,185.77,0.68]
[1760855799623,22.88,185.8,185.77,0.68]
[1760855799825,22.88,185.8,185.75,13.54364426]
[1760855799826,22.88,185.8,185.78,0.68]
[1760855800041,26.20887142,185.8,185.79,0.68]
[1760855800340,22.88,185.8,185.79,0.68]
[1760855800717,26.20887142,185.8,185.77,0.68]
[1760855800936,3.32887142,185.79,185.78,0.68]
[1760855801122,26.20887142,185.8,185.79,0.68]
[1760855801331,26.20887142,185.8,185.77,0.68]
[1760855801553,3.32887142,185.79,185.78,0.68]
[1760855802058,26.20887142,185.8,185.78,0.68]
[1760855803154,26.20887142,185.8,185.76,14.22369264]
[1760855803444,26.20887142,185.8,185.77,0.68]
[1760855803619,26.20887142,185.8,185.76,13.54369264]
[1760855803822,3.32887142,185.77,185.75,4.83126722]
[1760855804220,3.32887142,185.76,185.75,4.83126722]
[1760855805750,0.69,185.82,185.75,5.50126722]
[1760855805953,3.32887142,185.81,185.76,0.67]
[1760855806132,3.32887142,185.81,185.77,0.67]
[1760855806332,3.32887142,185.8,185.78,0.67]
[1760855807123,3.32887142,185.79,185.76,0.67]
[1760855807354,3.32887142,185.79,185.77,0.67]
[1760855807644,3.32887142,185.78,185.75,4.83126722]
[1760855807851,3.32887142,185.77,185.75,4.83126722]
[1760855808152,3.32887142,185.76,185.75,4.83126722]
[1760855808344,3.32887142,185.76,185.75,5.50126722]
[1760855808728,3.32887142,185.77,185.75,5.50126722]
[1760855808933,3.32887142,185.77,185.76,0.67]
[1760855809735,3.32887142,185.77,185.75,4.83126722]
[1760855809945,3.32887142,185.77,185.75,5.50126722]
[1760855810250,3.32887142,185.77,185.76,0.67]
[1760855810949,3.32887142,185.77,185.75,4.83126722]
[1760855811152,3.32887142,185.77,185.76,0.67]
[1760855811630,22.88,185.79,185.76,0.67]
[1760855811835,3.32887142,185.78,185.76,0.67]
[1760855812433,3.32887142,185.77,185.76,0.67]
[1760855812735,3.32887142,185.77,185.75,4.83126722]
[1760855812934,3.32887142,185.76,185.75,4.83126722]
[1760855814554,3.32887142,185.77,185.75,5.50126722]
[1760855814748,3.32887142,185.77,185.76,0.67]
[1760855815251,3.32887142,185.77,185.75,4.83126722]
[1760855815755,3.32887142,185.77,185.76,0.67]
[1760855816143,3.32887142,185.77,185.75,4.83126722]
[1760855816346,3.32887142,185.77,185.75,5.50126722]
[1760855816542,3.32887142,185.77,185.76,0.67]
[1760855817155,3.32887142,185.77,185.75,4.83126722]
[1760855817474,3.32887142,185.77,185.75,5.50126722]
[1760855817663,102.1,185.79,185.75,4.83126722]
[1760855817967,3.32887142,185.76,185.75,4.83126722]
[1760855818355,0.69,185.78,185.75,4.83126722]
[1760855818555,3.32887142,185.76,185.75,4.83126722]
[1760855818743,4.01887142,185.76,185.75,4.83126722]
[1760855819143,18.22421805,185.76,185.75,4.83126722]
[1760855819342,14.89534663,185.76,185.75,4.83126722]
[1760855819939,18.22421805,185.76,185.75,4.83126722]
[1760855821235,11.56647521,185.76,185.75,4.83126722]
[1760855821556,18.22421805,185.76,185.75,4.83126722]
[1760855821959,14.89534663,185.76,185.75,4.83126722]
[1760855822152,0.69,185.81,185.75,4.83126722]
[1760855822354,0.69,185.81,185.75,5.50126722]
[1760855822546,3.32887142,185.76,185.75,5.50126722]
[1760855825644,3.32887142,185.76,185.75,4.83126722]
[1760855826069,102.79,185.8,185.75,4.83126722]
[1760855826272,3.32887142,185.76,185.75,4.83126722]
[1760855826649,3.32887142,185.76,185.75,5.50126722]
[1760855828765,3.32887142,185.77,185.75,5.50126722]
[1760855828942,3.32887142,185.76,185.75,4.83126722]
[1760855829669,3.32887142,185.76,185.75,5.55126722]
[1760855830046,3.32887142,185.77,185.75,5.55126722]
[1760855830859,3.32887142,185.77,185.76,0.72]
[1760855831063,6.91103725,185.77,185.76,0.72]
[1760855831449,6.91103725,185.77,185.75,4.83126722]
[1760855831650,3.32887142,185.76,185.75,4.83126722]
[1760855832350,6.91691909,185.76,185.75,4.83126722]
[1760855834447,10.91579051,185.76,185.75,4.83126722]
[1760855835851,7.58691909,185.76,185.75,4.83126722]
[1760855836062,21.79226572,185.76,185.75,4.83126722]
[1760855837462,15.13452288,185.76,185.75,4.83126722]
[1760855837662,21.79226572,185.76,185.75,4.83126722]
[1760855838977,10.87647521,185.71,185.7,4.96212121]
[1760855839177,18.4633943,185.71,185.7,4.96212121]
[1760855839481,22.88,185.68,185.66,5.09297521]
[1760855839678,18.20421805,185.67,185.66,5.09297521]
[1760855840962,21.78098932,185.67,185.66,5.09297521]
[1760855841481,21.78098932,185.67,185.64,13.57489242]
[1760855841482,33.75647521,185.65,185.64,13.57489242]
[1760855841689,26.20887142,185.65,185.64,13.57489242]
[1760855843356,0.67,185.65,185.64,13.57489242]
[1760855843555,14.87534663,185.65,185.64,13.57489242]
[1760855843752,10.87647521,185.65,185.64,13.57489242]
[1760855843982,26.20887142,185.65,185.64,13.57489242]
[1760855844161,22.88,185.65,185.64,13.57489242]
[1760855844355,26.20887142,185.65,185.64,13.57489242]
[1760855844578,37.08534663,185.65,185.64,13.57489242]
[1760855844777,37.75534663,185.65,185.64,13.57489242]
[1760855845075,37.08534663,185.65,185.64,13.57489242]
[1760855845286,26.20887142,185.65,185.64,13.57489242]
[1760855845484,37.75534663,185.65,185.64,13.57489242]
[1760855845659,37.08534663,185.65,185.64,13.57489242]
[1760855845979,26.20887142,185.65,185.64,13.57489242]
[1760855847955,37.08534663,185.65,185.64,13.57489242]
[1760855848460,37.75534663,185.65,185.64,13.57489242]
[1760855849578,37.08534663,185.65,185.64,13.57489242]
[1760855850363,37.08534663,185.65,185.64,14.26489242]
[1760855850570,26.20887142,185.65,185.64,14.26489242]
[1760855852160,22.88,185.65,185.64,14.26489242]
[1760855852363,26.20887142,185.65,185.64,14.26489242]
[1760855852876,26.20887142,185.65,185.64,13.57489242]
[1760855853572,26.20887142,185.65,185.64,14.26489242]
[1760855853775,3.32887142,185.65,185.64,14.26489242]
[1760855854163,10.87647521,185.71,185.64,14.26489242]
[1760855854365,10.87647521,185.71,185.65,0.69]
[1760855854686,22.88,185.68,185.65,0.69]
[1760855854879,22.88,185.68,185.66,0.69]
[1760855855784,3.32887142,185.67,185.66,0.69]
[1760855856160,6.65774284,185.67,185.64,13.57489242]
[1760855856361,3.32887142,185.65,185.64,13.57489242]
[1760855856982,3.32887142,185.65,185.64,14.26489242]
[1760855858370,22.88,185.68,185.64,14.26489242]
[1760855858575,22.88,185.68,185.65,0.69]